bitfinex/quotes_ETHUSD_20241216
["timestamp","ask_amount","ask_price","bid_price","bid_amount"]
[1734383963903,0.7526,4026.7,4025.6,3.0]
[1734383964303,0.7526,4026.7,4025.6,3.02483898]
[1734383964511,0.7526,4026.7,4025.6,3.0]
[1734383965793,0.7526,4026.7,4025.7,0.02483714]
[1734383965995,0.7526,4026.7,4025.6,3.0]
[1734383966199,0.7526,4026.7,4026.0,3.11812381]
[1734383966397,2.02398385,4028.2,4026.5,3.11812381]
[1734383966398,0.8312,4027.7,4026.5,3.11812381]
[1734383966623,0.8312,4027.7,4027.0,3.11812381]
[1734383967537,0.8312,4027.7,4027.1,3.0]
[1734383968058,1.01199192,4029.4,4027.5,3.11812381]
[1734383968243,0.8312,4029.2,4027.6,3.0]
[1734383968956,0.8312,4029.7,4027.6,3.0]
[1734383969245,0.8312,4029.5,4027.6,3.0]
[1734383969452,0.8312,4029.3,4027.6,3.0]
[1734383969668,1.01199192,4029.7,4027.6,3.0]
[1734383969669,0.8312,4029.1,4027.6,3.0]
[1734383971464,0.779,4028.9,4027.1,3.0]
[1734383971831,0.1228368,4029.4,4027.1,3.0]
[1734383971832,0.779,4029.1,4027.1,3.0]
[1734383972025,0.779,4028.9,4027.1,3.0]
[1734383973348,0.779,4028.9,4028.0,3.11812381]
[1734383973659,0.779,4028.9,4028.1,3.02482186]
[1734383973871,0.779,4028.9,4028.1,3.0]
[1734383974418,0.779,4028.9,4027.5,3.11812381]
[1734383974870,0.22748604,4028.8,4027.5,3.11812381]
[1734383975069,0.22748604,4028.8,4027.0,3.11812381]
[1734383975070,0.7887,4028.7,4027.0,3.11812381]
[1734383975254,0.7887,4028.5,4027.0,3.11812381]
[1734383975847,0.22745824,4028.4,4027.0,3.11812381]
[1734383976052,0.7887,4028.3,4026.5,3.11812381]
[1734383976369,0.55,4028.0,4026.0,3.11812381]
[1734383976526,0.7887,4027.9,4026.0,3.11812381]
[1734383976726,0.7887,4027.7,4026.0,3.11812381]
[1734383977171,0.55,4028.0,4026.0,3.11812381]
[1734383977172,0.7887,4027.5,4026.0,3.11812381]
[1734383977541,1.01199192,4028.1,4025.5,3.11812381]
[1734383977542,0.7887,4027.2,4025.5,3.11812381]
[1734383977743,0.7887,4026.9,4025.0,3.11812381]
[1734383977959,0.55,4027.3,4025.0,3.11812381]
[1734383977960,0.7887,4026.7,4025.0,3.11812381]
[1734383978341,0.7808,4026.5,4025.0,3.11812381]
[1734383978955,0.7808,4026.3,4025.0,3.11812381]
[1734383979950,0.7808,4026.3,4025.4,3.11812381]
[1734383980150,1.76449192,4027.7,4025.9,3.11812381]
[1734383980493,1.76449192,4027.7,4026.0,3.0]
[1734383980494,0.22741415,4027.6,4026.0,3.0]
[1734383981897,0.7525,4027.5,4026.0,3.0]
[1734383984064,0.7969,4027.3,4026.0,3.0]
[1734383984683,0.22775826,4027.2,4026.0,3.0]
[1734383985780,0.8153,4027.1,4026.0,3.0]
[1734383987787,2.48256,4028.1,4025.9,3.11812381]
[1734383987788,0.8186,4026.9,4025.9,3.11812381]
[1734383988089,0.22790608,4026.8,4025.4,3.11812381]
[1734383988287,0.8186,4026.6,4025.4,3.11812381]
[1734383988474,0.992452,4027.7,4025.4,3.11812381]
[1734383988475,0.22786902,4026.5,4025.4,3.11812381]
[1734383988659,0.8186,4026.5,4025.4,3.11812381]
[1734383988862,0.22786029,4026.4,4024.9,3.11812381]
[1734383989163,2.48311,4027.2,4024.9,3.11812381]
[1734383989164,0.8186,4026.2,4024.9,3.11812381]
[1734383989697,0.8186,4026.0,4024.9,3.11812381]
[1734383989855,0.22782853,4025.9,4024.9,3.11812381]
[1734383990349,0.8186,4025.8,4024.9,3.11812381]
[1734383990974,0.8186,4025.8,4025.0,3.0]
[1734383991362,0.8186,4025.8,4024.0,0.7993]
[1734383991576,0.7654,4025.6,4023.9,3.11812381]
[1734383991779,4.13011573,4026.7,4023.9,3.11812381]
[1734383991780,0.7654,4025.4,4023.9,3.11812381]
[1734383992047,0.9930282,4025.3,4023.9,3.11812381]
[1734383992254,0.22761871,4025.2,4023.9,3.11812381]
[1734383992567,0.7654,4025.3,4023.9,3.11812381]
[1734383993077,0.7654,4025.3,4024.0,3.0]
[1734383995414,0.22731794,4025.2,4024.0,3.0]
[1734383995620,1.01199192,4026.2,4024.0,3.0]
[1734383995621,0.55,4025.9,4024.0,3.0]
[1734383995828,0.8034,4025.6,4024.0,3.0]
[1734383996029,0.4176171,4025.8,4024.0,3.0]
[1734383996030,0.8034,4025.4,4024.0,3.0]
[1734383996192,0.2272771,4025.3,4024.0,3.0]
[1734383996519,0.55,4025.5,4024.0,3.0]
[1734383996520,0.8034,4025.2,4024.0,3.0]
[1734383997607,0.8143,4025.4,4024.0,3.0]
[1734383997804,0.22709535,4025.3,4024.0,3.0]
[1734383998021,1.04139535,4025.2,4024.0,3.0]
[1734383998178,0.8143,4025.1,4024.0,3.0]
[1734383999133,0.8143,4026.3,4025.0,3.0]
[1734383999331,0.22711831,4026.2,4025.0,3.0]
[1734384000246,0.95174684,4026.3,4025.0,3.0]
[1734384000445,0.22721128,4026.2,4025.0,3.0]
[1734384003717,0.8316,4026.1,4025.0,3.0]
[1734384004027,0.22721128,4026.0,4024.5,3.0]
[1734384004394,0.8019,4025.9,4024.5,3.0]
[1734384004595,0.22721128,4025.8,4024.5,3.0]
[1734384007110,0.18247524,4025.7,4024.5,3.0]
[1734384007309,0.40968652,4025.6,4024.5,3.0]
[1734384007522,0.40968652,4025.5,4024.5,3.0]
[1734384007838,0.40968652,4025.5,4024.1,0.87601806]
[1734384007839,0.18247524,4025.4,4025.3,0.7927]
[1734384008058,0.7598,4026.5,4025.5,3.0]
[1734384008346,0.18263272,4026.4,4025.0,3.0]
[1734384008499,0.41089661,4026.3,4025.0,3.0]
[1734384008699,0.7598,4026.1,4025.0,3.0]
[1734384008934,0.41089661,4026.0,4025.0,3.0]
[1734384009141,0.7598,4026.1,4025.0,3.0]
[1734384009327,0.7895,4026.7,4025.5,3.0]
[1734384009623,0.41093298,4026.6,4025.5,3.0]
[1734384009827,0.18263744,4026.5,4025.5,3.0]
[1734384010008,0.18263744,4026.4,4025.5,3.0]
[1734384010207,0.7895,4026.7,4025.5,3.0]
[1734384010421,0.41099562,4026.6,4025.5,3.0]
[1734384010625,0.7895,4026.7,4025.5,3.0]
[1734384010626,0.41099562,4026.5,4025.5,3.0]
[1734384010835,0.41099562,4026.4,4025.5,3.0]
[1734384011023,0.41099562,4026.3,4025.5,3.0]
[1734384011320,0.7895,4026.7,4025.5,3.0]
[1734384011613,0.41098325,4026.6,4025.5,3.0]
[1734384011831,0.41098325,4026.5,4025.5,3.0]
[1734384012026,0.41098325,4026.4,4025.5,3.0]
[1734384012364,0.41103893,4026.3,4025.5,3.0]
[1734384012859,0.18268397,4026.2,4025.5,3.0]
[1734384013078,0.18268397,4026.1,4025.5,3.0]
[1734384013216,0.7895,4026.7,4025.5,3.0]
[1734384013217,0.18268397,4026.6,4025.5,3.0]
[1734384013417,0.41130081,4026.5,4025.5,3.0]
[1734384013646,0.41130081,4026.4,4025.5,3.0]
[1734384013843,0.41130081,4026.3,4025.5,3.0]
[1734384014022,0.41130081,4026.2,4025.5,3.0]
[1734384014218,0.1828003,4026.1,4025.3,3.0]
[1734384014435,0.7895,4026.7,4024.9,0.7927]
[1734384014657,0.4114588,4026.6,4025.3,3.0]
[1734384014868,0.4114588,4026.5,4025.3,3.0]
[1734384015033,0.4114588,4026.4,4024.9,0.7927]
[1734384015229,0.18287061,4026.3,4024.9,0.81753892]
[1734384015455,0.7895,4026.7,4024.9,0.81753892]
[1734384015456,0.7895,4026.7,4025.4,0.7868]
[1734384015667,0.41156562,4026.6,4025.4,0.81163777]
[1734384015831,1.51798789,4028.0,4025.4,0.81163777]
[1734384015832,0.7718,4027.0,4025.6,3.0]
[1734384016032,0.41158447,4026.9,4025.6,3.0]
[1734384016240,0.18292643,4026.8,4025.6,3.0]
[1734384016445,0.7718,4027.0,4025.6,3.0]
[1734384016775,0.41152323,4026.9,4025.6,3.0]
[1734384016977,0.41156963,4026.8,4025.4,0.7868]
[1734384017179,0.18289924,4026.8,4025.6,3.0]
[1734384017478,0.7718,4027.0,4025.6,3.0]
[1734384017479,0.4115597,4026.7,4025.6,3.0]
[1734384017688,0.18289924,4026.6,4025.4,0.7868]
[1734384017987,0.7718,4027.0,4025.9,3.0]
[1734384018154,0.7718,4027.4,4026.0,0.7868]
[1734384018332,0.41169288,4027.3,4026.0,0.7868]
[1734384018537,0.18297454,4027.2,4026.4,3.0]
[1734384018737,0.7718,4027.4,4026.0,0.81163164]
[1734384018938,0.7718,4027.4,4026.4,3.0]
[1734384019242,0.29264266,4028.3,4026.5,0.02483164]
[1734384019480,0.792,4027.8,4026.6,0.8296]
[1734384019778,0.792,4027.8,4027.0,3.0]
[1734384019960,0.792,4027.8,4026.6,0.8296]
[1734384020170,0.792,4027.8,4027.0,3.0]
[1734384020338,0.792,4027.8,4026.6,0.8296]
[1734384020764,0.792,4027.8,4027.0,3.0]
[1734384021037,0.792,4028.1,4026.7,0.0248287]
[1734384022176,0.13046346,4028.2,4026.8,0.8296]
[1734384023280,0.792,4028.4,4026.8,0.8296]
[1734384024036,0.792,4028.4,4026.9,0.02482567]
[1734384024274,0.792,4028.4,4027.4,3.0]
[1734384024515,0.792,4028.4,4027.5,0.02482485]
[1734384024717,0.792,4028.4,4026.9,0.02482485]
[1734384025376,0.8268,4028.8,4027.9,3.0]
[1734384025576,0.8268,4028.8,4028.0,0.82942082]
[1734384025818,0.8268,4028.8,4028.0,0.8046]
[1734384026315,0.29192108,4030.3,4028.0,0.8046]
[1734384026316,0.7789,4030.2,4028.2,3.0]
[1734384026481,1.01199192,4030.6,4028.1,0.02481755]
[1734384026482,0.41007748,4030.1,4028.1,0.02481755]
[1734384026677,1.13313354,4030.7,4028.1,0.02481755]
[1734384026678,0.7789,4030.0,4028.1,0.02481755]
[1734384027002,0.7789,4030.0,4028.6,3.0]
[1734384028412,0.7789,4030.0,4028.0,0.8046]
[1734384028719,0.7789,4030.0,4028.6,3.0]
[1734384029081,0.7789,4030.0,4028.0,0.93095815]
[1734384029281,0.7789,4030.0,4028.8,3.0]
[1734384030221,0.7789,4030.0,4029.3,3.0]
[1734384032601,0.7789,4030.0,4027.6,0.26726244]
[1734384032602,0.7789,4030.0,4028.6,3.11743047]
[1734384032795,0.7789,4030.0,4028.7,3.0]
[1734384033107,0.7789,4030.0,4029.1,3.11743047]
[1734384033417,0.7789,4030.0,4029.2,3.0]
[1734384034335,0.7789,4030.0,4029.3,3.0]
[1734384036403,0.7789,4030.0,4028.8,3.0]
[1734384036927,0.7789,4030.0,4027.3,0.29366318]
[1734384036928,0.7789,4030.0,4028.7,3.11743047]
[1734384037292,0.55,4029.9,4028.2,3.11743047]
[1734384037623,0.4184489,4030.9,4028.2,3.11743047]
[1734384037624,0.78,4029.6,4028.2,3.11743047]
[1734384037801,0.78,4029.4,4028.2,3.11743047]
[1734384037996,0.78,4029.4,4027.8,0.12404738]
[1734384037997,0.78,4029.4,4028.7,3.11743047]
[1734384038930,0.78,4029.4,4029.2,3.11743047]
[1734384039462,0.1684489,4030.9,4029.3,3.0]
[1734384039623,0.8312,4030.7,4029.3,3.0]
[1734384039831,0.7818,4030.5,4029.3,3.0]
[1734384040060,0.22769121,4030.4,4029.3,3.0]
[1734384040212,0.7818,4030.3,4029.3,3.0]
[1734384040760,0.7818,4030.1,4029.2,3.11743047]
[1734384040966,0.22775447,4030.0,4028.8,3.0]
[1734384041265,0.7818,4029.8,4028.8,3.0]
[1734384041612,0.7818,4030.8,4028.8,3.0]
[1734384041855,0.7818,4030.5,4028.8,3.0]
[1734384042068,0.55,4030.6,4028.8,3.0]
[1734384042069,0.7818,4030.2,4028.8,3.0]
[1734384042343,0.38870928,4030.4,4028.8,3.0]
[1734384042344,0.7818,4030.0,4028.8,3.0]
[1734384042553,0.2278253,4029.9,4028.8,3.0]
[1734384042760,0.27703978,4029.9,4028.8,3.0]
[1734384042945,0.04921448,4029.9,4028.8,3.0]
[1734384043259,0.7818,4029.7,4028.8,3.0]
[1734384043549,0.22816696,4029.6,4028.8,3.0]
[1734384045156,0.754,4029.5,4028.2,3.11743047]
[1734384045459,0.16088398,4030.4,4028.2,3.11743047]
[1734384045460,0.754,4029.3,4028.2,3.11743047]
[1734384045674,0.754,4029.1,4028.2,3.11743047]
[1734384046155,0.22850247,4029.0,4028.2,3.11743047]
[1734384046339,0.27765385,4029.0,4028.2,3.11743047]
[1734384046542,0.22850247,4028.9,4028.2,3.11743047]
[1734384046731,0.22850247,4028.8,4028.3,3.0]
[1734384046944,0.22850247,4028.7,4028.3,3.0]
[1734384047152,0.754,4030.1,4028.3,3.0]
[1734384047340,0.754,4030.1,4026.8,0.12599252]
[1734384047341,0.55,4029.7,4027.8,3.0]
[1734384047672,0.754,4029.3,4027.8,3.0]
[1734384047835,0.22865775,4029.2,4027.8,3.0]
[1734384048035,0.754,4029.0,4027.8,3.0]
[1734384048230,0.27725151,4028.9,4028.2,3.11743047]
[1734384048487,0.22865775,4028.8,4028.2,3.11743047]
[1734384048642,0.22865775,4028.7,4028.2,3.11743047]
[1734384048961,0.22865775,4028.6,4028.2,3.11743047]
[1734384049163,0.22865775,4028.5,4028.2,3.11743047]
[1734384049462,0.754,4029.0,4028.3,3.0]
[1734384049736,0.22908565,4028.9,4028.3,3.0]
[1734384049938,0.22908565,4028.8,4028.3,3.0]
[1734384050138,0.22908565,4028.7,4028.3,3.0]
[1734384050335,0.754,4029.0,4028.3,3.0]
[1734384050563,0.22910788,4028.9,4028.3,3.0]
[1734384050766,0.22910788,4028.8,4028.3,3.0]
[1734384050966,0.22910788,4028.7,4028.3,3.0]
[1734384051168,0.22910788,4028.6,4028.3,3.0]
[1734384051368,0.754,4029.0,4028.3,3.0]
[1734384051682,0.22925086,4028.9,4028.3,3.0]
[1734384051881,0.22925086,4028.8,4028.3,3.0]
[1734384052081,0.22925086,4028.7,4028.3,3.0]
[1734384052238,0.22925086,4028.6,4028.3,3.0]
[1734384052436,0.22932347,4028.5,4028.3,3.0]
[1734384052651,0.754,4029.0,4028.3,3.0]
[1734384052850,0.229327,4028.9,4028.3,3.0]
[1734384053084,0.229327,4028.8,4028.3,3.0]
[1734384053285,0.12290225,4030.3,4028.3,3.0]
[1734384053286,1.13489417,4030.3,4028.3,3.0]
[1734384053452,0.8104,4030.1,4028.3,3.0]
[1734384053658,0.22934262,4030.0,4028.3,3.0]
[1734384053983,0.22934262,4029.9,4028.3,3.0]
[1734384054190,0.04714308,4030.0,4028.8,3.806]
[1734384054191,0.22934262,4029.8,4028.8,3.806]
[1734384054513,0.22934262,4029.8,4029.3,3.0]
[1734384054514,0.22934262,4029.7,4029.3,3.0]
[1734384054639,0.22934262,4029.6,4029.3,3.0]
[1734384054838,0.22934262,4029.5,4029.3,3.0]
[1734384055062,0.22934262,4029.4,4029.3,3.0]
[1734384056655,0.8104,4030.1,4029.3,3.0]
[1734384056877,0.22943894,4030.0,4029.3,3.0]
[1734384057085,0.22943894,4029.9,4029.3,3.0]
[1734384057285,0.8104,4030.1,4029.3,3.0]
[1734384057286,0.22943894,4029.8,4029.3,3.0]
[1734384057472,0.22943894,4029.7,4029.3,3.0]
[1734384057678,0.22943894,4029.7,4029.4,0.0248156]
[1734384057988,0.8104,4030.1,4029.6,2.53243496]
[1734384058192,0.22942664,4030.0,4029.6,2.53243496]
[1734384058409,0.22942664,4029.9,4029.6,2.53243496]
[1734384058695,0.22942664,4029.8,4029.6,2.53243496]
[1734384058868,0.8104,4030.1,4029.6,2.53243496]
[1734384059070,0.22939609,4030.0,4029.6,2.53243496]
[1734384059303,0.22939609,4029.9,4029.6,2.53243496]
[1734384059516,0.22939609,4029.8,4029.6,2.53243496]
[1734384059797,0.22939609,4029.7,4029.6,5.53243496]
[1734384060172,0.22936125,4029.7,4029.6,5.53243496]
[1734384060579,0.8104,4030.1,4029.6,5.53243496]
[1734384060801,0.2294042,4030.0,4029.6,5.53243496]
[1734384061004,0.2294042,4029.9,4029.6,5.53243496]
[1734384061315,0.8104,4030.1,4029.6,5.53243496]
[1734384061617,0.22942674,4030.0,4029.6,5.53243496]
[1734384061923,0.8104,4030.1,4029.6,5.53243496]
[1734384061924,0.22942674,4029.9,4029.6,5.53243496]
[1734384062077,0.22942674,4029.8,4029.6,5.53243496]
[1734384062422,0.1684489,4030.9,4029.6,5.53243496]
[1734384062423,1.18044082,4030.9,4029.7,3.771]
[1734384062731,0.1684489,4030.9,4030.8,5.53243496]
[1734384063024,0.39787232,4030.9,4030.8,5.53243496]
[1734384063176,0.1684489,4030.9,4030.8,5.53243496]
[1734384063629,0.1684489,4030.9,4030.4,2.53243496]
[1734384063776,0.22919336,4030.8,4030.5,3.0]
[1734384063980,0.22919336,4030.7,4030.5,3.0]
[1734384064190,0.22919336,4030.6,4029.6,2.53243496]
[1734384064400,0.22919336,4030.5,4029.7,3.0]
[1734384064610,0.22919336,4030.5,4028.6,0.29366318]
[1734384064611,0.99449336,4030.4,4029.2,2.53243496]
[1734384064776,0.22919336,4030.3,4029.2,2.53243496]
[1734384064973,0.7653,4030.4,4029.2,2.53243496]
[1734384064974,0.22919336,4030.2,4029.2,2.53243496]
[1734384065212,0.22919336,4030.1,4029.2,2.53243496]
[1734384065423,0.22919336,4030.0,4029.2,2.53243496]
[1734384065732,0.7653,4030.4,4029.6,2.53243496]
[1734384065937,1.09482798,4030.4,4029.6,2.53243496]
[1734384066084,0.26603062,4030.3,4029.7,3.0]
[1734384066283,0.22879608,4030.2,4029.7,3.0]
[1734384066599,0.03723454,4030.3,4030.0,2.53243496]
[1734384066929,0.03723454,4030.3,4030.1,3.02481137]
[1734384067229,0.03723454,4030.3,4030.1,3.0]
[1734384067396,0.1684489,4030.9,4030.1,3.0]
[1734384067584,0.1684489,4030.9,4030.8,3.0]
[1734384068704,0.1684489,4030.9,4030.2,0.8272]
[1734384068705,0.1684489,4030.9,4030.3,2.53243496]
[1734384068909,0.1684489,4030.9,4030.4,3.0]
[1734384069650,3.58484511,4033.2,4033.1,0.25]
[1734384069947,3.55707383,4035.0,4033.2,3.55]
[1734384069948,0.1684489,4035.0,4033.2,3.55]
[1734384070117,0.22875424,4034.9,4034.4,3.0]
[1734384070319,0.1684489,4035.0,4034.4,3.0]
[1734384071274,0.1684489,4035.0,4034.0,3.0]
[1734384071425,0.1684489,4035.0,4033.6,3.0]
[1734384072108,0.1684489,4035.0,4033.2,0.8272]
[1734384072310,0.1684489,4035.0,4033.3,3.0]
[1734384072532,0.8143,4034.9,4033.3,3.0]
[1734384072720,0.55,4034.8,4033.3,3.0]
[1734384072919,0.15327489,4034.7,4033.3,3.0]
[1734384073327,0.0247693,4034.6,4033.3,3.0]
[1734384073749,0.8143,4034.5,4032.8,3.0]
[1734384074119,0.55,4034.4,4032.8,3.0]
[1734384074321,0.19390693,4034.3,4032.8,3.0]
[1734384074766,0.0248849,4034.2,4032.8,3.0]
[1734384077510,0.5748849,4034.2,4032.8,3.0]
[1734384080555,0.811,4034.1,4032.2,3.8989341]
[1734384080714,0.83577457,4034.1,4032.3,3.0]
[1734384080944,0.811,4033.7,4031.3,3.9031341]
[1734384081191,3.26780225,4034.0,4031.3,3.9031341]
[1734384081192,0.55,4033.4,4031.3,3.9031341]
[1734384081347,0.55,4033.2,4031.3,3.9031341]
[1734384082082,0.024722,4033.1,4031.3,3.9031341]
[1734384082380,0.1371322,4033.0,4031.3,3.9031341]
[1734384082749,0.7974,4032.9,4031.3,3.9031341]
[1734384082946,0.7974,4032.9,4031.3,3.1098341]
[1734384083146,0.7962,4032.7,4030.5,3.1098341]
[1734384083371,0.7962,4032.7,4030.5,3.8857341]
[1734384083698,0.13462,4032.6,4030.5,3.8857341]
[1734384083861,0.7962,4032.5,4030.5,3.91053585]
[1734384084064,0.7962,4032.5,4030.5,3.91053549]
[1734384084261,0.02421217,4032.4,4030.5,3.91053549]
[1734384084578,0.02421217,4032.4,4030.5,3.8857341]
[1734384085375,0.02421217,4032.4,4030.6,3.0]
[1734384085575,0.7962,4032.5,4030.6,3.0]
[1734384086353,0.55,4032.4,4030.6,3.0]
[1734384086593,0.55,4032.0,4029.9,0.7759]
[1734384086749,0.7962,4031.7,4029.9,0.7759]
[1734384087267,0.02383883,4031.6,4029.9,0.7759]
[1734384087792,0.02383883,4031.6,4030.1,3.1098341]
[1734384088195,0.02383883,4031.6,4030.2,3.0]
[1734384088892,0.7962,4031.7,4030.2,3.0]
[1734384089615,0.93082,4031.7,4030.2,3.0]
[1734384091472,0.7962,4031.7,4030.7,3.0]
[1734384091781,0.15796815,4034.0,4030.7,3.0]
[1734384091782,0.7813,4033.7,4031.2,3.0]
[1734384091986,0.02168223,4031.6,4031.3,0.0247983]
[1734384092293,0.7813,4032.6,4031.3,0.0247983]
[1734384092670,0.7813,4032.6,4030.8,0.37035746]
[1734384092882,0.7813,4032.6,4029.8,0.7575]
[1734384092883,0.77729356,4032.5,4030.2,3.1098341]
[1734384093114,0.7813,4032.3,4030.2,3.1098341]
[1734384093408,0.7813,4032.1,4030.2,3.1098341]
[1734384093609,0.15585936,4032.4,4030.2,3.1098341]
[1734384093610,0.7813,4031.9,4030.2,3.1098341]
[1734384093974,0.18181332,4031.8,4030.2,3.1098341]
[1734384094972,0.18181332,4031.8,4030.3,3.0]
[1734384096322,0.7813,4031.9,4030.3,3.0]
[1734384096623,0.18191107,4031.8,4030.3,3.0]
[1734384096829,0.4094326,4031.8,4030.3,3.0]
[1734384097003,0.18197004,4031.8,4030.3,3.0]
[1734384097208,0.7813,4031.9,4030.3,3.0]
[1734384097522,0.40947048,4031.8,4030.3,3.0]
[1734384097820,0.7813,4031.9,4030.3,3.0]
[1734384098291,0.7813,4031.9,4031.3,3.0]
[1734384098472,0.7813,4031.9,4031.3,3.37035746]
[1734384098673,0.8018,4033.6,4031.3,3.37035746]
[1734384098986,0.25,4034.6,4031.3,3.37035746]
[1734384098987,0.8018,4033.4,4031.7,3.1098341]
[1734384099190,0.40960152,4033.3,4031.8,3.0]
[1734384099412,0.40960152,4033.2,4031.8,3.0]
[1734384099827,0.40960152,4033.1,4031.8,3.0]
[1734384100119,0.8018,4033.4,4031.8,3.0]
[1734384100286,0.4096944,4033.3,4031.8,3.0]
[1734384100487,0.18208657,4033.2,4031.8,3.0]
[1734384100690,0.18208657,4033.1,4031.8,3.0]
[1734384100899,0.18208657,4033.0,4031.8,3.0]
[1734384101093,0.18208657,4032.9,4031.8,3.0]
[1734384101401,5.5885241,4034.4,4031.8,3.0]
[1734384101402,0.98388657,4032.8,4031.8,3.0]
[1734384101609,0.18208657,4032.7,4031.8,3.0]
[1734384102009,0.18208657,4032.7,4031.3,3.0]
[1734384103098,0.98388657,4032.6,4030.8,3.0]
[1734384103294,5.5891841,4033.4,4030.7,3.1098341]
[1734384103295,0.8018,4032.4,4030.7,3.1098341]
[1734384103505,0.7849,4032.2,4030.7,3.1098341]
[1734384103696,0.18208657,4032.1,4030.7,3.1098341]
[1734384104896,0.18208657,4032.1,4030.8,3.0]
[1734384105103,0.18208657,4032.1,4031.3,3.0]
[1734384106301,0.7849,4032.2,4031.3,3.0]
[1734384106502,0.18266118,4032.1,4031.3,3.0]
[1734384107645,0.18266118,4032.0,4031.3,3.0]
[1734384107803,0.7849,4032.2,4031.3,3.0]
[1734384107804,0.18266118,4031.9,4031.3,3.0]
[1734384108005,0.7849,4032.2,4031.3,3.0]
[1734384108242,0.18272329,4032.1,4031.3,3.0]
[1734384108407,0.18272329,4032.0,4031.3,3.0]
[1734384108605,0.18272329,4031.9,4031.3,3.0]
[1734384108920,3.25,4033.9,4030.8,3.0]
[1734384108921,0.8092,4031.7,4030.8,3.0]
[1734384110550,0.7717,4033.8,4031.5,3.0]
[1734384110754,0.18312907,4033.7,4032.2,3.0]
[1734384111060,1.26436036,4034.9,4032.2,3.0]
[1734384111061,0.95482907,4033.6,4032.2,3.0]
[1734384111354,0.7717,4033.4,4032.2,3.0]
[1734384111508,0.18312907,4033.3,4032.2,3.0]
[1734384111845,0.18312907,4033.3,4031.0,1.57484783]
[1734384111846,0.55,4033.1,4031.1,3.0]
[1734384112059,0.7717,4032.8,4031.1,3.0]
[1734384112205,0.18312972,4032.7,4031.1,3.0]
[1734384112530,0.92218291,4032.8,4031.1,3.0]
[1734384112531,0.95482972,4032.6,4031.1,3.0]
[1734384112732,0.95482972,4032.5,4031.1,3.0]
[1734384112922,0.18312972,4032.4,4031.1,3.0]
[1734384113252,0.7717,4032.2,4031.1,3.0]
[1734384113408,0.18312972,4032.1,4031.1,3.0]
[1734384113615,0.18312972,4032.0,4031.1,3.0]
[1734384113928,0.18312972,4031.9,4031.1,3.0]
[1734384114245,0.18312972,4031.8,4031.1,3.0]
[1734384114405,0.7717,4032.2,4031.0,3.1098341]
[1734384114608,0.1831231,4032.1,4031.0,3.1098341]
[1734384114845,0.9349231,4032.0,4030.5,3.1098341]
[1734384115057,0.9349231,4031.9,4030.5,3.1098341]
[1734384115257,0.8239,4031.7,4030.5,3.1098341]
[1734384115407,0.1831231,4031.6,4030.5,3.1098341]
[1734384116131,0.18312449,4031.5,4030.6,3.0]
[1734384116323,0.8239,4031.7,4030.6,3.0]
[1734384116530,0.18312481,4031.6,4030.6,3.0]
[1734384117155,0.9563218,4031.5,4030.6,3.0]
[1734384117311,0.7732,4031.5,4030.6,3.0]
[1734384117511,0.18314455,4031.4,4030.6,3.0]
[1734384118356,0.7732,4031.5,4030.6,3.0]
[1734384118961,0.1831647,4031.4,4030.6,3.0]
[1734384120693,0.7732,4031.5,4031.0,3.1098341]
[1734384120860,0.7574,4032.8,4031.1,3.02480413]
[1734384121193,0.94066573,4032.7,4031.1,3.0]
[1734384121355,0.18326573,4032.6,4031.1,3.0]
[1734384121549,0.94066573,4032.5,4031.1,3.0]
[1734384121885,0.3,4033.3,4031.5,3.1098341]
[1734384121886,0.7574,4032.3,4031.5,3.1098341]
[1734384122100,0.18326573,4032.2,4031.5,3.1098341]
[1734384122409,0.7574,4032.3,4031.6,3.0]
[1734384122410,0.18326573,4032.1,4031.6,3.0]
[1734384122557,0.18326573,4032.0,4031.6,3.0]
[1734384122756,0.7574,4032.3,4031.6,3.0]
[1734384122971,0.18331694,4032.2,4031.6,3.0]
[1734384123167,0.26995711,4032.3,4031.6,3.0]
[1734384132106,0.26995711,4032.3,4031.6,2.52950795]
[1734384132908,0.26995711,4032.3,4031.7,3.02480089]
[1734384133065,0.26995711,4032.3,4032.0,2.52950795]
[1734384134980,0.1836298,4032.2,4032.0,2.52950795]
[1734384135305,0.1836298,4032.1,4032.0,5.52950795]
[1734384136670,0.7621,4032.7,4032.1,3.0]
[1734384136884,0.18368806,4032.6,4032.1,3.0]
[1734384137082,0.18368806,4032.5,4032.1,3.0]
[1734384137304,0.18368806,4032.4,4032.1,3.0]
[1734384137485,0.7621,4032.7,4032.1,3.0]
[1734384138376,0.7621,4032.7,4032.0,2.52950795]
[1734384138680,0.7621,4032.7,4032.1,0.85751758]
[1734384140113,0.7621,4032.7,4032.0,2.52950795]
[1734384140318,0.7621,4032.7,4032.1,0.85757132]
[1734384140904,0.7621,4032.7,4031.7,4.02484783]
[1734384141087,0.7621,4032.7,4031.8,0.85755271]
[1734384141276,0.8328,4032.7,4031.7,3.0]
[1734384141480,0.55,4032.6,4031.7,3.0]
[1734384142896,0.55,4032.6,4031.8,0.85786645]
[1734384143421,0.55,4032.6,4031.7,3.0]
[1734384143606,0.55,4032.6,4031.8,0.85799892]
[1734384144000,0.55,4032.6,4031.7,3.02480065]
[1734384144330,0.8328,4032.7,4032.4,2.52950795]
[1734384145024,0.8328,4032.7,4032.0,2.52950795]
[1734384145231,0.8328,4032.7,4032.1,3.0]
[1734384149490,0.18370752,4032.6,4032.1,3.0]
[1734384149812,0.18370752,4032.5,4032.1,3.0]
[1734384149998,0.8328,4032.7,4032.1,3.0]
[1734384149999,0.18370752,4032.4,4032.1,3.0]